[Event "*** Titled Tuesday Blitz"]
[Site "Chess.com"]
[Date "2019.12.03"]
[Round "9"]
[White "JonahWillow"]
[Black "albi1999"]
[Result "1-0"]
[WhiteElo "2781"]
[BlackElo "2610"]
[TimeControl "180+2"]
[EndTime "15:09:01 PST"]
[Termination "JonahWillow won by resignation"]

1. e4 {[%clk 0:03:01.9]} 1... e5 {[%clk 0:02:59.2]} 2. Nf3 {[%clk 0:03:02.9]}
2... Nc6 {[%clk 0:02:59.5]} 3. Nc3 {[%clk 0:03:04]} 3... Nf6 {[%clk 0:02:59.7]}
4. Bb5 {[%clk 0:03:04.6]} 4... Bd6 {[%clk 0:02:59.7]} 5. d3 {[%clk 0:03:05.3]}
5... a6 {[%clk 0:03:00.3]} 6. Ba4 {[%clk 0:03:06.1]} 6... O-O {[%clk 0:03:01.1]}
7. g4 {[%clk 0:02:41.1]} 7... Bc5 {[%clk 0:02:29.1]} 8. Rg1 {[%clk 0:02:33.9]}
8... d6 {[%clk 0:02:24.6]} 9. h3 {[%clk 0:02:33.6]} 9... b5 {[%clk 0:02:18.5]}
10. Bb3 {[%clk 0:02:34.2]} 10... Be6 {[%clk 0:02:20.4]} 11. Bg5 {[%clk
0:02:29.7]} 11... h6 {[%clk 0:02:11.4]} 12. Be3 {[%clk 0:02:19.6]} 12... Bxe3
{[%clk 0:02:05.5]} 13. fxe3 {[%clk 0:02:21.5]} 13... b4 {[%clk 0:02:02.5]} 14.
Nd5 {[%clk 0:02:17.7]} 14... Bxd5 {[%clk 0:01:59.3]} 15. exd5 {[%clk 0:02:19.6]}
15... Ne7 {[%clk 0:01:57.1]} 16. g5 {[%clk 0:02:19.6]} 16... hxg5 {[%clk
0:01:55.2]} 17. Nxg5 {[%clk 0:02:19.8]} 17... a5 {[%clk 0:01:51.4]} 18. Qf3
{[%clk 0:02:12.7]} 18... a4 {[%clk 0:01:49.4]} 19. Bc4 {[%clk 0:02:13]} 19... c6
{[%clk 0:01:45.6]} 20. Ne4 {[%clk 0:02:01.3]} 20... Nxe4 {[%clk 0:01:44.1]} 21.
dxe4 {[%clk 0:02:00.7]} 21... cxd5 {[%clk 0:01:41.5]} 22. exd5 {[%clk
0:02:02.6]} 22... Qc7 {[%clk 0:01:32]} 23. Bd3 {[%clk 0:01:57.2]} 23... f5
{[%clk 0:01:29.9]} 24. e4 {[%clk 0:01:58.1]} 24... Nxd5 {[%clk 0:01:25.5]} 25.
exf5 {[%clk 0:01:50.9]} 25... Nf6 {[%clk 0:01:24.7]} 26. O-O-O {[%clk
0:01:45.3]} 26... a3 {[%clk 0:01:21.6]} 27. b3 {[%clk 0:01:30.9]} 27... d5
{[%clk 0:01:18.1]} 28. Bf1 {[%clk 0:01:31.7]} 28... Qc5 {[%clk 0:01:07.7]} 29.
Rg2 {[%clk 0:01:29.3]} 29... e4 {[%clk 0:01:04.1]} 30. Qg3 {[%clk 0:01:24.1]}
30... Ra7 {[%clk 0:01:04.5]} 31. Qe5 {[%clk 0:01:15.7]} 31... Re7 {[%clk
0:01:02.6]} 32. Qd4 {[%clk 0:01:10.6]} 32... Qxd4 {[%clk 0:00:52.3]} 33. Rxd4
{[%clk 0:01:12.5]} 33... e3 {[%clk 0:00:52.8]} 34. Bd3 {[%clk 0:01:06.8]} 34...
Ne4 {[%clk 0:00:44.8]} 35. Bxe4 {[%clk 0:01:07.3]} 35... Rxe4 {[%clk 0:00:39.4]}
36. Rxe4 {[%clk 0:00:52.2]} 36... dxe4 {[%clk 0:00:41.3]} 37. Re2 {[%clk
0:00:44.3]} 37... Rxf5 {[%clk 0:00:41.5]} 38. Rxe3 {[%clk 0:00:46.2]} 38... Rf4
{[%clk 0:00:39]} 39. Kd2 {[%clk 0:00:44.7]} 39... Kf7 {[%clk 0:00:40.3]} 40. Rg3
{[%clk 0:00:42]} 40... Kf6 {[%clk 0:00:38.8]} 41. Ke3 {[%clk 0:00:41.7]} 41...
g5 {[%clk 0:00:39.5]} 42. Rg1 {[%clk 0:00:39.5]} 42... Kf5 {[%clk 0:00:39.8]}
43. Rh1 {[%clk 0:00:29.6]} 43... Rf3+ {[%clk 0:00:39.2]} 44. Ke2 {[%clk
0:00:31.2]} 44... Kf4 {[%clk 0:00:38.1]} 45. Rh2 {[%clk 0:00:29.3]} 45... Rc3
{[%clk 0:00:36.9]} 46. Kd2 {[%clk 0:00:29.1]} 46... Kf3 {[%clk 0:00:31.9]} 47.
Ke1 {[%clk 0:00:16.4]} 47... e3 {[%clk 0:00:31.4]} 48. Kd1 {[%clk 0:00:15.7]}
48... Rc5 {[%clk 0:00:31]} 49. Ke1 {[%clk 0:00:12.7]} 49... Rd5 {[%clk 0:00:32]}
50. Re2 {[%clk 0:00:12.6]} 50... Rd4 {[%clk 0:00:30.9]} 51. Rh2 {[%clk
0:00:13.1]} 51... Rh4 {[%clk 0:00:29]} 52. Rh1 {[%clk 0:00:12.1]} 52... Ke4
{[%clk 0:00:22.3]} 53. Rg1 {[%clk 0:00:12]} 53... Rxh3 {[%clk 0:00:16.9]} 54.
Rxg5 {[%clk 0:00:13.1]} 54... Rh1+ {[%clk 0:00:17.8]} 55. Ke2 {[%clk 0:00:14.4]}
55... Rh2+ {[%clk 0:00:19.7]} 56. Kd1 {[%clk 0:00:14.7]} 56... Rd2+ {[%clk
0:00:16.6]} 57. Kc1 {[%clk 0:00:16.1]} 57... Rh2 {[%clk 0:00:14.5]} 58. Kd1
{[%clk 0:00:15.3]} 58... Kd4 {[%clk 0:00:15.8]} 59. Rg3 {[%clk 0:00:15.4]} 59...
Rd2+ {[%clk 0:00:15.2]} 60. Kc1 {[%clk 0:00:16.6]} 60... Rf2 {[%clk 0:00:15.5]}
61. Rg4+ {[%clk 0:00:13.2]} 61... Ke5 {[%clk 0:00:14.5]} 62. Kd1 {[%clk
0:00:14.8]} 62... Rf1+ {[%clk 0:00:13.7]} 63. Ke2 {[%clk 0:00:16]} 63... Rc1
{[%clk 0:00:14.1]} 64. Rc4 {[%clk 0:00:15.3]} 64... Ra1 {[%clk 0:00:13.5]} 65.
Kxe3 {[%clk 0:00:15.1]} 65... Rxa2 {[%clk 0:00:14.8]} 66. Kd2 {[%clk 0:00:15.7]}
66... Kd5 {[%clk 0:00:15.1]} 67. Rxb4 {[%clk 0:00:15.8]} 67... Kc5 {[%clk
0:00:17]} 68. Ra4 {[%clk 0:00:17.3]} 68... Kb5 {[%clk 0:00:16.7]} 69. Ra8 {[%clk
0:00:16.6]} 69... Kb4 {[%clk 0:00:17.7]} 70. Ra4+ {[%clk 0:00:17.6]} 70... Kb5
{[%clk 0:00:18.9]} 71. Kc3 {[%clk 0:00:19.5]} 71... Ra1 {[%clk 0:00:20]} 72. Ra8
{[%clk 0:00:20.7]} 72... Kc5 {[%clk 0:00:20.6]} 73. Ra5+ {[%clk 0:00:17.8]}
73... Kb6 {[%clk 0:00:21.5]} 74. Kb4 {[%clk 0:00:19.7]} 74... a2 {[%clk
0:00:19.7]} 75. Ra3 {[%clk 0:00:18.7]} 75... Kc6 {[%clk 0:00:19.5]} 76. Kc3
{[%clk 0:00:19.8]} 76... Kb5 {[%clk 0:00:20.5]} 77. Kb2 {[%clk 0:00:19.9]} 77...
Kb4 {[%clk 0:00:14.7]} 78. Rxa2 {[%clk 0:00:16.6]} 78... Rh1 {[%clk 0:00:14.4]}
79. Ra4+ {[%clk 0:00:18.1]} 79... Kb5 {[%clk 0:00:16.3]} 80. Rg4 {[%clk
0:00:19.9]} 80... Rh5 {[%clk 0:00:17]} 81. Ka3 {[%clk 0:00:20.2]} 1-0

[Event "*** Titled Tuesday Blitz"]
[Site "Chess.com"]
[Date "2019.12.03"]
[Round "9"]
[White "andrzej"]
[Black "visa"]
[Result "1-0"]
[WhiteElo "2383"]
[BlackElo "2259"]
[TimeControl "180+2"]
[EndTime "15:09:21 PST"]
[Termination "andrzej won by resignation"]

1. d4 {[%clk 0:03:01.5]} 1... d5 {[%clk 0:02:53.7]} 2. c4 {[%clk 0:03:02.7]}
2... e6 {[%clk 0:02:54.4]} 3. Nf3 {[%clk 0:03:03.7]} 3... Nf6 {[%clk 0:02:55.2]}
4. g3 {[%clk 0:03:05.3]} 4... Be7 {[%clk 0:02:55.9]} 5. Bg2 {[%clk 0:03:06.6]}
5... O-O {[%clk 0:02:57.5]} 6. Nc3 {[%clk 0:03:07.3]} 6... dxc4 {[%clk
0:02:53.9]} 7. Ne5 {[%clk 0:03:08]} 7... Nc6 {[%clk 0:02:52.7]} 8. Bxc6 {[%clk
0:03:01.6]} 8... bxc6 {[%clk 0:02:53.1]} 9. Nxc6 {[%clk 0:03:01.2]} 9... Qe8
{[%clk 0:02:53.1]} 10. Nxe7+ {[%clk 0:03:01.2]} 10... Qxe7 {[%clk 0:02:52.4]}
11. Qa4 {[%clk 0:02:58]} 11... Bb7 {[%clk 0:02:47.6]} 12. O-O {[%clk 0:02:40.2]}
12... c5 {[%clk 0:02:47.7]} 13. Qxc4 {[%clk 0:02:35.7]} 13... cxd4 {[%clk
0:02:33.8]} 14. Qxd4 {[%clk 0:02:36.7]} 14... Rfd8 {[%clk 0:02:33]} 15. Qh4
{[%clk 0:02:37.5]} 15... Qc5 {[%clk 0:02:18.4]} 16. Be3 {[%clk 0:02:05.5]} 16...
Qc6 {[%clk 0:02:15.2]} 17. f3 {[%clk 0:02:06.7]} 17... Nd5 {[%clk 0:02:10.9]}
18. Nxd5 {[%clk 0:02:07.1]} 18... Rxd5 {[%clk 0:02:07.4]} 19. Rac1 {[%clk
0:02:02.6]} 19... Qb5 {[%clk 0:01:54.2]} 20. Qc4 {[%clk 0:01:51.7]} 20... h6
{[%clk 0:00:39.1]} 21. Qxb5 {[%clk 0:01:42.3]} 21... Rxb5 {[%clk 0:00:41]} 22.
Bd4 {[%clk 0:01:43.5]} 22... Bd5 {[%clk 0:00:39.7]} 23. a3 {[%clk 0:01:40.5]}
23... Rab8 {[%clk 0:00:37.3]} 24. Rfd1 {[%clk 0:01:34.5]} 24... R8b7 {[%clk
0:00:33.5]} 25. Kf2 {[%clk 0:01:26]} 25... f6 {[%clk 0:00:32]} 26. Bc3 {[%clk
0:01:25.8]} 26... e5 {[%clk 0:00:28.9]} 27. e4 {[%clk 0:01:21.4]} 27... Bb3
{[%clk 0:00:28.2]} 28. Rd3 {[%clk 0:01:10]} 28... Kf7 {[%clk 0:00:27.5]} 29. Bb4
{[%clk 0:01:07.9]} 29... a5 {[%clk 0:00:24.3]} 30. Bc3 {[%clk 0:00:50]} 30... a4
{[%clk 0:00:23.5]} 31. Re1 {[%clk 0:00:48.1]} 31... Ke6 {[%clk 0:00:20.1]} 32.
Ke3 {[%clk 0:00:48.4]} 32... Rd7 {[%clk 0:00:21]} 33. Rxd7 {[%clk 0:00:44]}
33... Kxd7 {[%clk 0:00:22.9]} 34. Rc1 {[%clk 0:00:45.1]} 34... Rb7 {[%clk
0:00:23.1]} 35. Bb4 {[%clk 0:00:39.2]} 35... Rc7 {[%clk 0:00:19.2]} 36. Rxc7+
{[%clk 0:00:38.9]} 36... Kxc7 {[%clk 0:00:20.2]} 37. Bf8 {[%clk 0:00:40.6]}
37... g6 {[%clk 0:00:14.2]} 38. Bg7 {[%clk 0:00:37.5]} 38... Kd6 {[%clk
0:00:09.7]} 39. Bxf6 {[%clk 0:00:36.9]} 39... Ke6 {[%clk 0:00:10.4]} 40. Bg7
{[%clk 0:00:35.8]} 40... h5 {[%clk 0:00:11.7]} 41. Bf8 {[%clk 0:00:36.1]} 41...
Bc4 {[%clk 0:00:12]} 42. Bb4 {[%clk 0:00:35.4]} 42... Bb3 {[%clk 0:00:13.2]} 43.
Bc3 {[%clk 0:00:36.2]} 43... Bd1 {[%clk 0:00:13.9]} 44. f4 {[%clk 0:00:37.2]}
44... exf4+ {[%clk 0:00:14]} 45. gxf4 {[%clk 0:00:39.1]} 45... Bb3 {[%clk
0:00:14.8]} 46. Kf2 {[%clk 0:00:35.8]} 46... Bd1 {[%clk 0:00:15.4]} 47. Kg3
{[%clk 0:00:35.8]} 47... Bc2 {[%clk 0:00:15.8]} 48. Kf3 {[%clk 0:00:37]} 48...
Bb1 {[%clk 0:00:16.7]} 49. Ke3 {[%clk 0:00:36.1]} 49... Bc2 {[%clk 0:00:17.9]}
50. Kd4 {[%clk 0:00:37.1]} 50... Bb3 {[%clk 0:00:15.4]} 51. Be1 {[%clk 0:00:38]}
51... Bd1 {[%clk 0:00:15.8]} 52. Bh4 {[%clk 0:00:38.8]} 52... Bb3 {[%clk
0:00:16.1]} 53. Kc3 {[%clk 0:00:37.7]} 53... Bd1 {[%clk 0:00:17.1]} 54. Bf2
{[%clk 0:00:33.7]} 54... Bb3 {[%clk 0:00:17.9]} 55. Bd4 {[%clk 0:00:33.6]} 55...
Bd1 {[%clk 0:00:18]} 56. Kd2 {[%clk 0:00:34.6]} 56... Bb3 {[%clk 0:00:19.1]} 57.
Ke3 {[%clk 0:00:35]} 57... Bc2 {[%clk 0:00:19.9]} 58. Bc3 {[%clk 0:00:28.5]}
58... Bb3 {[%clk 0:00:18.8]} 59. h4 {[%clk 0:00:29.4]} 59... Bc2 {[%clk
0:00:19.5]} 60. Kd4 {[%clk 0:00:25.2]} 60... Bb3 {[%clk 0:00:19.8]} 61. Be1
{[%clk 0:00:25.3]} 61... Bc2 {[%clk 0:00:20.3]} 62. Bd2 {[%clk 0:00:26.6]} 62...
Bb3 {[%clk 0:00:21.5]} 63. Bc3 {[%clk 0:00:25.9]} 63... Bc2 {[%clk 0:00:22.6]}
64. b4 {[%clk 0:00:25.6]} 64... axb3 {[%clk 0:00:22]} 65. Bb2 {[%clk 0:00:26.5]}
65... Kd6 {[%clk 0:00:14.2]} 66. a4 {[%clk 0:00:27]} 66... Kc6 {[%clk
0:00:12.9]} 67. Ke5 {[%clk 0:00:16.5]} 67... Bd3 {[%clk 0:00:10.9]} 68. f5
{[%clk 0:00:17.6]} 68... gxf5 {[%clk 0:00:11.2]} 69. exf5 {[%clk 0:00:18.8]}
69... Kd7 {[%clk 0:00:05.8]} 70. f6 {[%clk 0:00:16.8]} 70... Bc4 {[%clk
0:00:04.4]} 71. Kd4 {[%clk 0:00:16.4]} 71... Bf7 {[%clk 0:00:05]} 72. Kc5 {[%clk
0:00:17.5]} 72... Kc7 {[%clk 0:00:06.2]} 73. a5 {[%clk 0:00:16.7]} 73... Kb7
{[%clk 0:00:07]} 74. Kd6 {[%clk 0:00:17.9]} 74... Ka6 {[%clk 0:00:05.1]} 75. Ke7
{[%clk 0:00:19.1]} 75... Bc4 {[%clk 0:00:06.2]} 76. Bc3 {[%clk 0:00:16.1]} 76...
b2 {[%clk 0:00:02.5]} 77. Bxb2 {[%clk 0:00:16.7]} 77... Kxa5 {[%clk 0:00:04.4]}
78. f7 {[%clk 0:00:18.1]} 78... Bxf7 {[%clk 0:00:05.7]} 79. Kxf7 {[%clk
0:00:20]} 79... Kb6 {[%clk 0:00:06.1]} 80. Kg6 {[%clk 0:00:21]} 80... Kc6 {[%clk
0:00:08]} 81. Kxh5 {[%clk 0:00:21.6]} 81... Kd7 {[%clk 0:00:09.9]} 82. Kg6
{[%clk 0:00:23]} 82... Ke6 {[%clk 0:00:11.8]} 83. h5 {[%clk 0:00:24]} 1-0

[Event "*** Titled Tuesday Blitz"]
[Site "Chess.com"]
[Date "2019.12.03"]
[Round "9"]
[White "ShahMatKanal"]
[Black "Azatic"]
[Result "1-0"]
[WhiteElo "2501"]
[BlackElo "2604"]
[TimeControl "180+2"]
[EndTime "15:10:21 PST"]
[Termination "ShahMatKanal won by resignation"]

1. d4 {[%clk 0:03:01.9]} 1... Nf6 {[%clk 0:03:00.9]} 2. Bf4 {[%clk 0:03:01.9]}
2... g6 {[%clk 0:03:02.1]} 3. e3 {[%clk 0:03:02.7]} 3... Bg7 {[%clk 0:03:03.4]}
4. Nf3 {[%clk 0:03:03.7]} 4... O-O {[%clk 0:03:04.6]} 5. h3 {[%clk 0:03:05]}
5... d6 {[%clk 0:03:05.1]} 6. Be2 {[%clk 0:03:06.2]} 6... b6 {[%clk 0:03:06.5]}
7. O-O {[%clk 0:03:06.4]} 7... Bb7 {[%clk 0:03:07.9]} 8. c4 {[%clk 0:03:02.7]}
8... Nbd7 {[%clk 0:03:08.7]} 9. Nc3 {[%clk 0:03:00.7]} 9... Re8 {[%clk
0:03:09.5]} 10. Bh2 {[%clk 0:03:00.4]} 10... e5 {[%clk 0:03:07.2]} 11. dxe5
{[%clk 0:02:53.7]} 11... dxe5 {[%clk 0:03:09.1]} 12. Qc2 {[%clk 0:02:50.3]}
12... Qe7 {[%clk 0:03:01.2]} 13. Rfd1 {[%clk 0:02:49.9]} 13... a6 {[%clk
0:03:01.7]} 14. Nd5 {[%clk 0:02:43.8]} 14... Nxd5 {[%clk 0:02:58.9]} 15. cxd5
{[%clk 0:02:45.7]} 15... Rac8 {[%clk 0:02:57.9]} 16. e4 {[%clk 0:02:40.6]} 16...
Bf8 {[%clk 0:02:32.8]} 17. Bg3 {[%clk 0:02:33.5]} 17... f6 {[%clk 0:02:31.6]}
18. a3 {[%clk 0:02:23.5]} 18... a5 {[%clk 0:02:30.1]} 19. Qb3 {[%clk 0:02:13.5]}
19... Nc5 {[%clk 0:02:30.1]} 20. Qc2 {[%clk 0:01:38.6]} 20... Qd6 {[%clk
0:01:16.6]} 21. Nd2 {[%clk 0:01:37.2]} 21... a4 {[%clk 0:01:10]} 22. b4 {[%clk
0:01:32.5]} 22... axb3 {[%clk 0:01:08.6]} 23. Nxb3 {[%clk 0:01:33.6]} 23... Nxb3
{[%clk 0:01:08.5]} 24. Qxb3 {[%clk 0:01:35.5]} 24... Kh8 {[%clk 0:01:05.2]} 25.
a4 {[%clk 0:01:34]} 25... Qb4 {[%clk 0:01:02.3]} 26. Qf3 {[%clk 0:01:34.8]}
26... Kg7 {[%clk 0:00:56.2]} 27. h4 {[%clk 0:01:35.7]} 27... Ra8 {[%clk
0:00:51.4]} 28. Bb5 {[%clk 0:01:34.3]} 28... Red8 {[%clk 0:00:48.2]} 29. h5
{[%clk 0:01:35.1]} 29... Be7 {[%clk 0:00:48.4]} 30. Rac1 {[%clk 0:01:29.3]}
30... Qd6 {[%clk 0:00:42.6]} 31. Qc3 {[%clk 0:01:14.3]} 31... Rdc8 {[%clk
0:00:41.6]} 32. Qe3 {[%clk 0:01:11]} 32... g5 {[%clk 0:00:38.8]} 33. Ra1 {[%clk
0:01:05.2]} 33... Qd8 {[%clk 0:00:27]} 34. Be2 {[%clk 0:01:04.8]} 34... Bd6
{[%clk 0:00:25.4]} 35. Bg4 {[%clk 0:01:05.9]} 35... Rcb8 {[%clk 0:00:26.4]} 36.
Be2 {[%clk 0:00:50.7]} 36... Bc8 {[%clk 0:00:25.7]} 37. Ra2 {[%clk 0:00:51.3]}
37... Bd7 {[%clk 0:00:26.4]} 38. Rda1 {[%clk 0:00:52.5]} 38... Qe8 {[%clk
0:00:26.7]} 39. Qb3 {[%clk 0:00:50.7]} 39... Ra5 {[%clk 0:00:22.5]} 40. f3
{[%clk 0:00:47.7]} 40... Rba8 {[%clk 0:00:21.7]} 41. Be1 {[%clk 0:00:47.7]}
41... Rxa4 {[%clk 0:00:20.6]} 42. Rxa4 {[%clk 0:00:45.8]} 42... Rxa4 {[%clk
0:00:22.5]} 43. Rxa4 {[%clk 0:00:47]} 43... Bxa4 {[%clk 0:00:24.4]} 44. Qc4
{[%clk 0:00:44.8]} 44... Bc5+ {[%clk 0:00:25.5]} 45. Bf2 {[%clk 0:00:38.4]}
45... Bd6 {[%clk 0:00:23.1]} 46. g4 {[%clk 0:00:34.7]} 46... Bd7 {[%clk
0:00:23.9]} 47. Qa6 {[%clk 0:00:33.4]} 47... Qc8 {[%clk 0:00:23.7]} 48. Qa7
{[%clk 0:00:33.8]} 48... h6 {[%clk 0:00:23.1]} 49. Ba6 {[%clk 0:00:32.7]} 49...
Qd8 {[%clk 0:00:23.1]} 50. Kg2 {[%clk 0:00:31.3]} 50... Kf7 {[%clk 0:00:23.9]}
51. Bc4 {[%clk 0:00:30.2]} 51... Ke7 {[%clk 0:00:24.3]} 52. Be3 {[%clk
0:00:30.4]} 52... Be8 {[%clk 0:00:21.8]} 53. Bxb6 {[%clk 0:00:29.5]} 53... Qd7
{[%clk 0:00:21.6]} 54. Be3 {[%clk 0:00:28.4]} 54... Kf8 {[%clk 0:00:21.5]} 55.
Qa8 {[%clk 0:00:26.3]} 55... Ke7 {[%clk 0:00:21.6]} 56. Kf2 {[%clk 0:00:24.5]}
56... Qa4 {[%clk 0:00:22]} 57. Qxa4 {[%clk 0:00:24.5]} 57... Bxa4 {[%clk
0:00:23.9]} 58. Ke2 {[%clk 0:00:24.8]} 58... Kd7 {[%clk 0:00:24.6]} 59. Ba6
{[%clk 0:00:22.7]} 59... c6 {[%clk 0:00:24.8]} 60. dxc6+ {[%clk 0:00:21.5]}
60... Kxc6 {[%clk 0:00:25.8]} 61. Bd3 {[%clk 0:00:18.9]} 61... Bc5 {[%clk
0:00:25.9]} 62. Bc1 {[%clk 0:00:19.6]} 62... Bb3 {[%clk 0:00:24.9]} 63. Bb2
{[%clk 0:00:19]} 63... Kb6 {[%clk 0:00:24.4]} 64. Bc3 {[%clk 0:00:19.1]} 64...
Bd4 {[%clk 0:00:21.5]} 65. Bb4 {[%clk 0:00:13.1]} 65... Bc5 {[%clk 0:00:22.4]}
66. Bd2 {[%clk 0:00:12.7]} 66... Bd4 {[%clk 0:00:20.9]} 67. Bc1 {[%clk
0:00:11.5]} 67... Bc5 {[%clk 0:00:20.8]} 68. Bb2 {[%clk 0:00:12.3]} 68... Bd4
{[%clk 0:00:22]} 69. Ba3 {[%clk 0:00:13.2]} 69... Bc5 {[%clk 0:00:23.3]} 70. Bb2
{[%clk 0:00:10.5]} 70... Bd4 {[%clk 0:00:23.6]} 71. Bc1 {[%clk 0:00:06.6]} 71...
Be6 {[%clk 0:00:21.3]} 72. Bd2 {[%clk 0:00:07.3]} 72... Bc5 {[%clk 0:00:21.7]}
73. Bc3 {[%clk 0:00:07.7]} 73... Bd4 {[%clk 0:00:22.9]} 74. Bb4 {[%clk
0:00:08.5]} 74... Bc5 {[%clk 0:00:24]} 75. Bd2 {[%clk 0:00:09.6]} 75... Bd4
{[%clk 0:00:24.9]} 76. Be1 {[%clk 0:00:09.2]} 76... Kc5 {[%clk 0:00:24.6]} 77.
Ba5 {[%clk 0:00:09.7]} 77... Kd6 {[%clk 0:00:10.6]} 78. Bd8 {[%clk 0:00:10.4]}
78... Bg8 {[%clk 0:00:05.9]} 79. Bxf6 {[%clk 0:00:11.4]} 79... Ke6 {[%clk
0:00:07.8]} 80. Bg7 {[%clk 0:00:12.2]} 80... Bc5 {[%clk 0:00:09.1]} 81. Bxh6
{[%clk 0:00:11.3]} 81... Kf6 {[%clk 0:00:11]} 82. Bb5 {[%clk 0:00:09.4]} 82...
Bf7 {[%clk 0:00:11.2]} 83. Bd3 {[%clk 0:00:06.9]} 83... Bb4 {[%clk 0:00:12.3]}
84. Bb5 {[%clk 0:00:05.9]} 84... Be6 {[%clk 0:00:13.5]} 85. Kf2 {[%clk 0:00:06]}
85... Bc5+ {[%clk 0:00:14.4]} 86. Kg3 {[%clk 0:00:07.3]} 86... Be3 {[%clk
0:00:15.7]} 87. Bf8 {[%clk 0:00:07.3]} 87... Bf4+ {[%clk 0:00:17]} 88. Kg2
{[%clk 0:00:08.3]} 88... Bd2 {[%clk 0:00:18.7]} 89. Bc5 {[%clk 0:00:07.7]} 89...
Bf7 {[%clk 0:00:19.7]} 90. Bd3 {[%clk 0:00:08]} 90... Bf4 {[%clk 0:00:20.7]} 91.
Be2 {[%clk 0:00:09.1]} 91... Bd2 {[%clk 0:00:21.7]} 92. Kf1 {[%clk 0:00:10.2]}
92... Bc1 {[%clk 0:00:22.9]} 93. Ke1 {[%clk 0:00:11.1]} 93... Bb2 {[%clk
0:00:24.4]} 94. Kd2 {[%clk 0:00:12.2]} 94... Ba1 {[%clk 0:00:25.9]} 95. Kc2
{[%clk 0:00:12.3]} 95... Be6 {[%clk 0:00:26]} 96. Bd3 {[%clk 0:00:11.8]} 96...
Bf7 {[%clk 0:00:27.2]} 97. Bb4 {[%clk 0:00:10.9]} 97... Be6 {[%clk 0:00:28.4]}
98. Bc3 {[%clk 0:00:11.9]} 98... Bxc3 {[%clk 0:00:27.9]} 99. Kxc3 {[%clk
0:00:13.8]} 99... Bd7 {[%clk 0:00:29.4]} 100. Bc4 {[%clk 0:00:14.2]} 100... Be6
{[%clk 0:00:31.3]} 101. Bxe6 {[%clk 0:00:14.9]} 1-0

[Event "*** Titled Tuesday Blitz"]
[Site "Chess.com"]
[Date "2019.12.03"]
[Round "10"]
[White "sergeikim"]
[Black "Marcin"]
[Result "1-0"]
[WhiteElo "2489"]
[BlackElo "2358"]
[TimeControl "180+2"]
[EndTime "15:13:27 PST"]
[Termination "sergeikim won by resignation"]

1. d4 {[%clk 0:03:01.9]} 1... Nf6 {[%clk 0:03:00.8]} 2. c4 {[%clk 0:03:01.6]}
2... g6 {[%clk 0:03:01.8]} 3. Nc3 {[%clk 0:03:02.6]} 3... d5 {[%clk 0:03:01.7]}
4. cxd5 {[%clk 0:03:03.1]} 4... Nxd5 {[%clk 0:03:03.6]} 5. e4 {[%clk 0:03:04]}
5... Nxc3 {[%clk 0:03:04.5]} 6. bxc3 {[%clk 0:03:05.6]} 6... Bg7 {[%clk
0:03:06.4]} 7. Bc4 {[%clk 0:03:06.4]} 7... c5 {[%clk 0:03:05.9]} 8. Ne2 {[%clk
0:03:07.5]} 8... Nc6 {[%clk 0:03:07.2]} 9. Be3 {[%clk 0:03:07.7]} 9... O-O
{[%clk 0:03:08.7]} 10. O-O {[%clk 0:03:08.7]} 10... b6 {[%clk 0:03:09.7]} 11.
Qd2 {[%clk 0:03:09.5]} 11... Bb7 {[%clk 0:03:10.6]} 12. Rad1 {[%clk 0:03:08.3]}
12... Rc8 {[%clk 0:03:07.4]} 13. Bd5 {[%clk 0:03:05.3]} 13... cxd4 {[%clk
0:03:06.3]} 14. cxd4 {[%clk 0:03:05.6]} 14... e6 {[%clk 0:03:07.2]} 15. Bxc6
{[%clk 0:03:06.2]} 15... Bxc6 {[%clk 0:03:06]} 16. Ng3 {[%clk 0:03:07]} 16... h5
{[%clk 0:02:46.6]} 17. Bg5 {[%clk 0:03:06]} 17... Qd7 {[%clk 0:02:45.2]} 18. Bh6
{[%clk 0:03:05.2]} 18... Ba4 {[%clk 0:02:33.2]} 19. Bxg7 {[%clk 0:02:51.9]}
19... Kxg7 {[%clk 0:02:33.1]} 20. Nxh5+ {[%clk 0:02:46.8]} 20... gxh5 {[%clk
0:02:21.8]} 21. Qg5+ {[%clk 0:02:47.2]} 21... Kh7 {[%clk 0:02:22.9]} 22. Qxh5+
{[%clk 0:02:48]} 22... Kg7 {[%clk 0:02:24]} 23. Qg5+ {[%clk 0:02:48.9]} 23...
Kh7 {[%clk 0:02:25.2]} 24. Rd3 {[%clk 0:02:49.7]} 1-0

[Event "*** Titled Tuesday Blitz"]
[Site "Chess.com"]
[Date "2019.12.03"]
[Round "10"]
[White "1977Ivan"]
[Black "IgorBjelobrk"]
[Result "1-0"]
[WhiteElo "2798"]
[BlackElo "2677"]
[TimeControl "180+2"]
[EndTime "15:14:14 PST"]
[Termination "1977Ivan won by resignation"]

1. d4 {[%clk 0:02:53.5]} 1... Nf6 {[%clk 0:03:00.5]} 2. c4 {[%clk 0:02:53.8]}
2... e6 {[%clk 0:03:01.4]} 3. Nc3 {[%clk 0:02:49.8]} 3... Bb4 {[%clk 0:03:02.1]}
4. Qc2 {[%clk 0:02:50.8]} 4... d5 {[%clk 0:03:02.3]} 5. Bg5 {[%clk 0:02:50.6]}
5... h6 {[%clk 0:03:03.1]} 6. Bh4 {[%clk 0:02:48.7]} 6... dxc4 {[%clk
0:02:59.5]} 7. e3 {[%clk 0:02:49.2]} 7... b5 {[%clk 0:02:56.6]} 8. a4 {[%clk
0:02:49.7]} 8... c6 {[%clk 0:02:56.3]} 9. Bxf6 {[%clk 0:02:50.5]} 9... gxf6
{[%clk 0:02:53.5]} 10. Be2 {[%clk 0:02:49.8]} 10... Bb7 {[%clk 0:02:48.8]} 11.
Bf3 {[%clk 0:02:50.7]} 11... Qb6 {[%clk 0:02:49.8]} 12. Ne2 {[%clk 0:02:51.2]}
12... Nd7 {[%clk 0:02:49.8]} 13. O-O {[%clk 0:02:51.9]} 13... Be7 {[%clk
0:02:44.4]} 14. Rfc1 {[%clk 0:02:20.1]} 14... a6 {[%clk 0:02:44.1]} 15. Nf4
{[%clk 0:02:13.9]} 15... Rc8 {[%clk 0:02:34.1]} 16. Bh5 {[%clk 0:01:47.7]} 16...
Kf8 {[%clk 0:02:30.6]} 17. Bxf7 {[%clk 0:01:44.4]} 17... e5 {[%clk 0:02:19.6]}
18. Be6 {[%clk 0:01:44.7]} 18... exf4 {[%clk 0:02:18.5]} 19. Qg6 {[%clk
0:01:44.4]} 1-0

[Event "*** Titled Tuesday Blitz"]
[Site "Chess.com"]
[Date "2019.12.03"]
[Round "10"]
[White "Kawhi_Leonard2"]
[Black "ChessBitl"]
[Result "0-1"]
[WhiteElo "2273"]
[BlackElo "2374"]
[TimeControl "180+2"]
[EndTime "15:14:37 PST"]
[Termination "ChessBitl won by resignation"]

1. e4 {[%clk 0:03:01.9]} 1... c5 {[%clk 0:03:00.7]} 2. Nf3 {[%clk 0:03:02.9]}
2... Nc6 {[%clk 0:03:02.3]} 3. d4 {[%clk 0:03:03.9]} 3... cxd4 {[%clk
0:03:03.6]} 4. Nxd4 {[%clk 0:03:04.3]} 4... g6 {[%clk 0:03:05.1]} 5. Nc3 {[%clk
0:03:04.2]} 5... Bg7 {[%clk 0:03:06.3]} 6. Be3 {[%clk 0:03:05.8]} 6... Nf6
{[%clk 0:03:07.8]} 7. Bc4 {[%clk 0:03:06.7]} 7... O-O {[%clk 0:03:09]} 8. Bb3
{[%clk 0:03:07]} 8... a5 {[%clk 0:03:10.5]} 9. O-O {[%clk 0:03:07.3]} 9... a4
{[%clk 0:03:07.6]} 10. Nxa4 {[%clk 0:03:08.3]} 10... Nxe4 {[%clk 0:03:08.2]} 11.
Nb5 {[%clk 0:03:09.5]} 11... d6 {[%clk 0:03:01]} 12. Bb6 {[%clk 0:02:49.9]}
12... Qd7 {[%clk 0:03:00.2]} 13. Re1 {[%clk 0:02:44.9]} 13... Nf6 {[%clk
0:02:55]} 14. h3 {[%clk 0:02:39]} 14... Ne5 {[%clk 0:02:54.3]} 15. c4 {[%clk
0:02:34]} 15... Qc6 {[%clk 0:02:45.6]} 16. Rc1 {[%clk 0:02:21.9]} 16... Rxa4
{[%clk 0:02:43.4]} 17. Bxa4 {[%clk 0:02:20.8]} 17... Qxb6 {[%clk 0:02:43.7]} 18.
Bb3 {[%clk 0:02:15.9]} 18... Be6 {[%clk 0:02:43.8]} 19. Nd4 {[%clk 0:02:13.7]}
19... Bd7 {[%clk 0:02:38.1]} 20. Kh1 {[%clk 0:02:11.7]} 20... Re8 {[%clk
0:02:23.8]} 21. f4 {[%clk 0:02:08.9]} 21... Nc6 {[%clk 0:02:23.8]} 22. Nf3
{[%clk 0:01:55.1]} 22... Na5 {[%clk 0:02:21]} 23. g4 {[%clk 0:01:43.9]} 23...
Bc6 {[%clk 0:02:17.4]} 24. Kh2 {[%clk 0:01:43.4]} 24... Nxb3 {[%clk 0:02:17.6]}
25. axb3 {[%clk 0:01:43.8]} 25... Qf2+ {[%clk 0:02:15.7]} 0-1